[Event "*** SCC Grand Prix: Titled Tuesday Blitz"]
[Site "Chess.com"]
[Date "2020.09.29"]
[Round "10"]
[White "ural58"]
[Black "DonPreuss"]
[Result "1-0"]
[WhiteElo "2349"]
[BlackElo "2236"]
[TimeControl "180+1"]
[EndTime "11:56:16 PDT"]
[Termination "ural58 won on time"]

1. e4 {[%clk 0:03:00.9]} 1... e5 {[%clk 0:02:59.1]} 2. f4 {[%clk 0:02:45.8]}
2... d5 {[%clk 0:02:59]} 3. exd5 {[%clk 0:02:45.5]} 3... c6 {[%clk 0:02:58.7]}
4. Qe2 {[%clk 0:02:30.9]} 4... cxd5 {[%clk 0:02:51.6]} 5. fxe5 {[%clk 0:02:31]}
5... Nc6 {[%clk 0:02:47.9]} 6. Nf3 {[%clk 0:02:06.9]} 6... Bc5 {[%clk
0:02:46.1]} 7. c3 {[%clk 0:02:06.2]} 7... d4 {[%clk 0:02:44.9]} 8. Qe4 {[%clk
0:01:51.6]} 8... Be6 {[%clk 0:02:35.3]} 9. b4 {[%clk 0:01:41.8]} 9... Bb6 {[%clk
0:02:34.3]} 10. b5 {[%clk 0:01:32]} 10... Nce7 {[%clk 0:02:11.2]} 11. cxd4
{[%clk 0:01:24.9]} 11... Rc8 {[%clk 0:02:02.7]} 12. Nc3 {[%clk 0:01:16]} 12...
Nh6 {[%clk 0:01:58.1]} 13. Be2 {[%clk 0:01:04.5]} 13... O-O {[%clk 0:01:57.3]}
14. O-O {[%clk 0:00:50.9]} 14... Bf5 {[%clk 0:01:46.9]} 15. Qf4 {[%clk 0:00:44]}
15... Ng6 {[%clk 0:01:45.2]} 16. Qe3 {[%clk 0:00:31.6]} 16... Ng4 {[%clk
0:01:39.9]} 17. Qg5 {[%clk 0:00:31.4]} 17... Bxd4+ {[%clk 0:01:37.7]} 18. Kh1
{[%clk 0:00:30]} 18... Qxg5 {[%clk 0:01:23.8]} 19. Nxg5 {[%clk 0:00:30]} 19...
Nf2+ {[%clk 0:01:22.8]} 20. Rxf2 {[%clk 0:00:30.3]} 20... Bxf2 {[%clk
0:01:22.4]} 21. Ba3 {[%clk 0:00:31.2]} 21... Rfe8 {[%clk 0:01:02.5]} 22. Rf1
{[%clk 0:00:30]} 22... Rxe5 {[%clk 0:01:00.7]} 23. Rxf2 {[%clk 0:00:27.7]} 23...
Rce8 {[%clk 0:00:55.8]} 24. h3 {[%clk 0:00:24.7]} 24... h6 {[%clk 0:00:52.6]}
25. Nf3 {[%clk 0:00:24.4]} 25... R5e6 {[%clk 0:00:47.9]} 26. Nd4 {[%clk
0:00:24.5]} 26... Rxe2 {[%clk 0:00:32.2]} 27. Rxe2 {[%clk 0:00:21.7]} 27... Rxe2
{[%clk 0:00:31.3]} 28. Ncxe2 {[%clk 0:00:21.1]} 28... Bd3 {[%clk 0:00:30]} 29.
Bd6 {[%clk 0:00:19.4]} 29... f6 {[%clk 0:00:20.8]} 30. Bb8 {[%clk 0:00:19.7]}
30... a6 {[%clk 0:00:20.4]} 31. Nf4 {[%clk 0:00:20.6]} 31... Nxf4 {[%clk
0:00:16.4]} 32. Bxf4 {[%clk 0:00:21.5]} 32... axb5 {[%clk 0:00:16.3]} 33. Kg1
{[%clk 0:00:21.5]} 33... Kf7 {[%clk 0:00:15.5]} 34. Bb8 {[%clk 0:00:21.8]} 34...
Ke7 {[%clk 0:00:13.7]} 35. Kf2 {[%clk 0:00:22.7]} 35... g6 {[%clk 0:00:13.5]}
36. Ke3 {[%clk 0:00:23.6]} 36... Bc4 {[%clk 0:00:12.5]} 37. a3 {[%clk
0:00:23.7]} 37... f5 {[%clk 0:00:11.3]} 38. d3 {[%clk 0:00:24.6]} 38... Bd5
{[%clk 0:00:10.4]} 39. Nxb5 {[%clk 0:00:24.7]} 39... Kf6 {[%clk 0:00:10.1]} 40.
g3 {[%clk 0:00:25.6]} 40... g5 {[%clk 0:00:10]} 41. h4 {[%clk 0:00:25.9]} 41...
Bc6 {[%clk 0:00:07.5]} 42. Nd4 {[%clk 0:00:25.5]} 42... Bd5 {[%clk 0:00:07.6]}
43. Ne2 {[%clk 0:00:24.4]} 43... Ke6 {[%clk 0:00:05.4]} 44. Nc3 {[%clk
0:00:24.2]} 44... Bc6 {[%clk 0:00:05.1]} 45. d4 {[%clk 0:00:25.1]} 45... b6
{[%clk 0:00:01.4]} 46. d5+ {[%clk 0:00:24.9]} 46... Bxd5 {[%clk 0:00:01.4]} 47.
Nxd5 {[%clk 0:00:25.8]} 47... Kxd5 {[%clk 0:00:02.2]} 48. Ba7 {[%clk 0:00:25.5]}
48... b5 {[%clk 0:00:01.7]} 49. Bb6 {[%clk 0:00:25.1]} 1-0

[Event "*** SCC Grand Prix: Titled Tuesday Blitz"]
[Site "Chess.com"]
[Date "2020.09.29"]
[Round "10"]
[White "swimmerchess"]
[Black "WIDBIFS"]
[Result "0-1"]
[WhiteElo "2821"]
[BlackElo "2680"]
[TimeControl "180+1"]
[EndTime "11:56:17 PDT"]
[Termination "WIDBIFS won by resignation"]

1. e4 {[%clk 0:03:00.9]} 1... c6 {[%clk 0:02:58.8]} 2. d4 {[%clk 0:03:00.8]}
2... d5 {[%clk 0:02:59.5]} 3. e5 {[%clk 0:03:01.4]} 3... c5 {[%clk 0:03:00.2]}
4. Nf3 {[%clk 0:03:01]} 4... Nc6 {[%clk 0:02:59.6]} 5. c4 {[%clk 0:03:00.8]}
5... cxd4 {[%clk 0:02:57.4]} 6. Nxd4 {[%clk 0:02:59.3]} 6... e6 {[%clk
0:02:54.3]} 7. Nc3 {[%clk 0:02:57.5]} 7... Bb4 {[%clk 0:02:50.1]} 8. Nxc6 {[%clk
0:02:55.3]} 8... bxc6 {[%clk 0:02:49.2]} 9. Bd2 {[%clk 0:02:54.3]} 9... Ne7
{[%clk 0:02:47.7]} 10. Bd3 {[%clk 0:02:52.7]} 10... O-O {[%clk 0:02:44.2]} 11.
O-O {[%clk 0:02:52.2]} 11... Ng6 {[%clk 0:02:40.1]} 12. f4 {[%clk 0:02:42.7]}
12... dxc4 {[%clk 0:02:39.7]} 13. Be4 {[%clk 0:02:39.9]} 13... Qd4+ {[%clk
0:02:34.8]} 14. Rf2 {[%clk 0:02:27.6]} 14... Bxc3 {[%clk 0:02:34.5]} 15. Bxg6
{[%clk 0:02:26.7]} 15... Bxd2 {[%clk 0:02:06.3]} 16. Bxh7+ {[%clk 0:01:56.2]}
16... Kxh7 {[%clk 0:02:02.7]} 17. Qh5+ {[%clk 0:01:57.1]} 17... Kg8 {[%clk
0:02:03.3]} 18. Rd1 {[%clk 0:01:57.7]} 18... Be3 {[%clk 0:02:01.7]} 19. Rxd4
{[%clk 0:01:57.3]} 19... Bxd4 {[%clk 0:02:02.6]} 20. Qe2 {[%clk 0:01:37.6]}
20... Rb8 {[%clk 0:01:55.3]} 21. Qxc4 {[%clk 0:01:35.8]} 21... Bxf2+ {[%clk
0:01:55.1]} 22. Kxf2 {[%clk 0:01:36.7]} 22... Rxb2+ {[%clk 0:01:55.8]} 23. Kg3
{[%clk 0:01:36.7]} 23... c5 {[%clk 0:01:50.4]} 24. Kh3 {[%clk 0:01:27.2]} 24...
Bb7 {[%clk 0:01:49.1]} 25. g3 {[%clk 0:01:21.3]} 25... Bg2+ {[%clk 0:01:44.4]}
26. Kh4 {[%clk 0:01:18.9]} 26... Bd5 {[%clk 0:01:45.3]} 27. Qxc5 {[%clk
0:01:13.8]} 27... Rxh2+ {[%clk 0:01:45]} 28. Kg5 {[%clk 0:01:13.9]} 28... Rxa2
{[%clk 0:01:42.6]} 29. f5 {[%clk 0:01:13.2]} 29... Re2 {[%clk 0:01:35.1]} 30.
Qd6 {[%clk 0:01:02.3]} 30... a5 {[%clk 0:01:25]} 31. f6 {[%clk 0:00:51.1]} 31...
g6 {[%clk 0:01:20.5]} 32. g4 {[%clk 0:00:41.4]} 32... Ra8 {[%clk 0:01:16.5]} 33.
Qa3 {[%clk 0:00:28.8]} 33... Rxe5+ {[%clk 0:00:52.1]} 34. Kf4 {[%clk 0:00:28.4]}
34... Re1 {[%clk 0:00:47.5]} 35. Qh3 {[%clk 0:00:22.4]} 35... Rh1 {[%clk
0:00:47.6]} 36. Qa3 {[%clk 0:00:22.4]} 36... a4 {[%clk 0:00:47.8]} 37. Kg5
{[%clk 0:00:20.6]} 37... Bb3 {[%clk 0:00:44.3]} 38. Kf4 {[%clk 0:00:17]} 38...
Rc8 {[%clk 0:00:35.9]} 39. Qe7 {[%clk 0:00:14.6]} 39... e5+ {[%clk 0:00:30.7]}
40. Qxe5 {[%clk 0:00:09.8]} 40... Be6 {[%clk 0:00:20.6]} 41. Qa5 {[%clk
0:00:08.3]} 41... Rg1 {[%clk 0:00:16]} 42. g5 {[%clk 0:00:07]} 42... Rg4+ {[%clk
0:00:16.3]} 43. Kf3 {[%clk 0:00:07.1]} 43... Rgc4 {[%clk 0:00:15.4]} 44. Ke3
{[%clk 0:00:07.2]} 44... a3 {[%clk 0:00:15]} 45. Kd3 {[%clk 0:00:06.8]} 45... a2
{[%clk 0:00:14.5]} 46. Kd2 {[%clk 0:00:05.3]} 46... Rc1 {[%clk 0:00:12.3]} 0-1

[Event "*** SCC Grand Prix: Titled Tuesday Blitz"]
[Site "Chess.com"]
[Date "2020.09.29"]
[Round "10"]
[White "aloe_normansen"]
[Black "anasta10"]
[Result "1/2-1/2"]
[WhiteElo "2373"]
[BlackElo "2500"]
[TimeControl "180+1"]
[EndTime "11:56:19 PDT"]
[Termination "Game drawn by repetition"]

1. e4 {[%clk 0:03:00.9]} 1... e6 {[%clk 0:02:58]} 2. d4 {[%clk 0:03:00]} 2... d5
{[%clk 0:02:58.2]} 3. Nc3 {[%clk 0:02:59.7]} 3... Bb4 {[%clk 0:02:57.4]} 4. e5
{[%clk 0:02:59.8]} 4... c5 {[%clk 0:02:56.9]} 5. a3 {[%clk 0:02:58.7]} 5...
Bxc3+ {[%clk 0:02:54.2]} 6. bxc3 {[%clk 0:02:58.7]} 6... Qa5 {[%clk 0:02:55.1]}
7. Bd2 {[%clk 0:02:52.3]} 7... Qa4 {[%clk 0:02:53.4]} 8. Qb1 {[%clk 0:02:51.1]}
8... c4 {[%clk 0:02:51.3]} 9. Nf3 {[%clk 0:02:47.5]} 9... Ne7 {[%clk 0:02:50]}
10. g3 {[%clk 0:02:40.2]} 10... Nbc6 {[%clk 0:02:48.4]} 11. Bg2 {[%clk
0:02:38.2]} 11... b6 {[%clk 0:02:47.5]} 12. h4 {[%clk 0:02:34.8]} 12... Bd7
{[%clk 0:02:47.7]} 13. h5 {[%clk 0:02:30.8]} 13... h6 {[%clk 0:02:47.7]} 14. O-O
{[%clk 0:02:27.4]} 14... O-O-O {[%clk 0:02:47.5]} 15. Nh4 {[%clk 0:02:26.2]}
15... f6 {[%clk 0:02:45.9]} 16. f4 {[%clk 0:02:25.1]} 16... Kb8 {[%clk
0:02:37.1]} 17. exf6 {[%clk 0:02:05]} 17... gxf6 {[%clk 0:02:35.1]} 18. f5
{[%clk 0:02:04.7]} 18... exf5 {[%clk 0:02:19.9]} 19. Bf4+ {[%clk 0:02:03.9]}
19... Ka8 {[%clk 0:02:19.8]} 20. Qc1 {[%clk 0:01:59.3]} 20... Be8 {[%clk
0:02:10.7]} 21. Bf3 {[%clk 0:01:56.4]} 21... Rg8 {[%clk 0:01:59.3]} 22. Kh2
{[%clk 0:01:52.7]} 22... Bf7 {[%clk 0:01:32.5]} 23. Bxh6 {[%clk 0:01:34.8]}
23... Qa6 {[%clk 0:01:25.3]} 24. Qf4 {[%clk 0:01:31.8]} 24... Qc8 {[%clk
0:01:12.6]} 25. Rae1 {[%clk 0:01:26.6]} 25... Qd7 {[%clk 0:01:11.8]} 26. Re2
{[%clk 0:01:11.1]} 26... Qe8 {[%clk 0:00:36.5]} 27. Rfe1 {[%clk 0:01:07.6]}
27... Bxh5 {[%clk 0:00:34.5]} 28. Bxh5 {[%clk 0:00:47.1]} 28... Qxh5 {[%clk
0:00:33.4]} 29. Rxe7 {[%clk 0:00:47.2]} 29... Nxe7 {[%clk 0:00:33.3]} 30. Rxe7
{[%clk 0:00:48.1]} 30... Rg4 {[%clk 0:00:16.5]} 31. Qc7 {[%clk 0:00:46.8]} 31...
Rxh4+ {[%clk 0:00:16.6]} 32. gxh4 {[%clk 0:00:47.1]} 32... Qxh4+ {[%clk
0:00:15.4]} 33. Kg2 {[%clk 0:00:47.5]} 33... Rg8+ {[%clk 0:00:14.9]} 34. Bg7
{[%clk 0:00:47.1]} 34... Qg4+ {[%clk 0:00:12.8]} 35. Kf2 {[%clk 0:00:47.1]}
35... Qh4+ {[%clk 0:00:12.5]} 36. Qg3 {[%clk 0:00:46.1]} 36... Qh5 {[%clk
0:00:05.4]} 37. Rd7 {[%clk 0:00:32.8]} 37... Qd1 {[%clk 0:00:05.4]} 38. Qc7
{[%clk 0:00:22.5]} 38... Qxc2+ {[%clk 0:00:05.3]} 39. Kf3 {[%clk 0:00:20.2]}
39... Qxc3+ {[%clk 0:00:04.4]} 40. Kf4 {[%clk 0:00:20.5]} 40... Qxd4+ {[%clk
0:00:04.7]} 41. Kxf5 {[%clk 0:00:21]} 41... Qe4+ {[%clk 0:00:05]} 42. Kxf6
{[%clk 0:00:21.5]} 42... Qf3+ {[%clk 0:00:05]} 43. Kg6 {[%clk 0:00:20.9]} 43...
Qe4+ {[%clk 0:00:04.8]} 44. Kf6 {[%clk 0:00:20.8]} 44... Qf3+ {[%clk 0:00:04.9]}
45. Kg5 {[%clk 0:00:20.9]} 45... Qg2+ {[%clk 0:00:04.7]} 46. Kh5 {[%clk
0:00:20.6]} 46... Qf3+ {[%clk 0:00:04.6]} 47. Kg5 {[%clk 0:00:20]} 47... Qg2+
{[%clk 0:00:04.6]} 48. Kf6 {[%clk 0:00:20.2]} 48... Qf3+ {[%clk 0:00:04.6]}
1/2-1/2

[Event "*** SCC Grand Prix: Titled Tuesday Blitz"]
[Site "Chess.com"]
[Date "2020.09.29"]
[Round "10"]
[White "bazar-wokzal"]
[Black "Berardino"]
[Result "1-0"]
[WhiteElo "2512"]
[BlackElo "2701"]
[TimeControl "180+1"]
[EndTime "11:56:20 PDT"]
[Termination "bazar-wokzal won on time"]

1. e4 {[%clk 0:03:00.9]} 1... c5 {[%clk 0:02:59.3]} 2. c3 {[%clk 0:03:00.8]}
2... Nf6 {[%clk 0:02:57.6]} 3. e5 {[%clk 0:03:00.2]} 3... Nd5 {[%clk 0:02:58]}
4. d4 {[%clk 0:02:59.9]} 4... cxd4 {[%clk 0:02:58.9]} 5. cxd4 {[%clk 0:02:59.8]}
5... d6 {[%clk 0:02:58.1]} 6. Bc4 {[%clk 0:02:59]} 6... e6 {[%clk 0:02:56]} 7.
Nf3 {[%clk 0:02:58.3]} 7... Nc6 {[%clk 0:02:55.9]} 8. O-O {[%clk 0:02:57.9]}
8... Be7 {[%clk 0:02:55.3]} 9. Qe2 {[%clk 0:02:58.1]} 9... O-O {[%clk
0:02:51.1]} 10. Qe4 {[%clk 0:02:58.4]} 10... Ndb4 {[%clk 0:02:44.7]} 11. Bb3
{[%clk 0:02:55.5]} 11... dxe5 {[%clk 0:02:39.8]} 12. dxe5 {[%clk 0:02:54.2]}
12... Qd3 {[%clk 0:02:36.5]} 13. Nc3 {[%clk 0:02:51.3]} 13... Qxe4 {[%clk
0:02:18.6]} 14. Nxe4 {[%clk 0:02:51]} 14... Nd3 {[%clk 0:02:18.1]} 15. Rd1
{[%clk 0:02:48]} 15... Ndxe5 {[%clk 0:02:16.3]} 16. Nxe5 {[%clk 0:02:44.5]}
16... Nxe5 {[%clk 0:02:17.2]} 17. Bf4 {[%clk 0:02:44.3]} 17... Nc6 {[%clk
0:01:59.3]} 18. Rd2 {[%clk 0:02:33.4]} 18... b6 {[%clk 0:01:43.8]} 19. Rc1
{[%clk 0:02:26.6]} 19... Na5 {[%clk 0:01:42]} 20. Ba4 {[%clk 0:02:04.4]} 20...
Bb7 {[%clk 0:01:41.1]} 21. Rd7 {[%clk 0:01:57.9]} 21... Bxe4 {[%clk 0:01:02.5]}
22. Rxe7 {[%clk 0:01:57.6]} 22... Rfc8 {[%clk 0:00:57.5]} 23. Rxc8+ {[%clk
0:01:53.7]} 23... Rxc8 {[%clk 0:00:58.4]} 24. Rxa7 {[%clk 0:01:51.8]} 24... e5
{[%clk 0:00:52.7]} 25. Be3 {[%clk 0:01:48.3]} 25... Nc4 {[%clk 0:00:52.9]} 26.
Bb3 {[%clk 0:01:40]} 26... h6 {[%clk 0:00:45.2]} 27. Bxc4 {[%clk 0:01:32.3]}
27... Rxc4 {[%clk 0:00:44.8]} 28. f3 {[%clk 0:01:32.6]} 28... Bd5 {[%clk
0:00:41.6]} 29. b3 {[%clk 0:01:20.4]} 29... Rc6 {[%clk 0:00:24.9]} 30. Ra8+
{[%clk 0:01:10.5]} 30... Kh7 {[%clk 0:00:23.6]} 31. Rb8 {[%clk 0:01:11.1]} 31...
Rc2 {[%clk 0:00:20.5]} 32. a4 {[%clk 0:01:02]} 32... Bxb3 {[%clk 0:00:19.2]} 33.
a5 {[%clk 0:01:02.5]} 33... Bc4 {[%clk 0:00:13]} 34. axb6 {[%clk 0:00:58.8]}
34... Rb2 {[%clk 0:00:13]} 35. Bc5 {[%clk 0:00:54]} 35... f5 {[%clk 0:00:11.8]}
36. Re8 {[%clk 0:00:50.7]} 36... f4 {[%clk 0:00:10.6]} 37. h4 {[%clk 0:00:46.7]}
37... Rb1+ {[%clk 0:00:05.6]} 38. Kh2 {[%clk 0:00:46.1]} 38... Rb2 {[%clk
0:00:06.3]} 39. Rxe5 {[%clk 0:00:36.1]} 39... Bf1 {[%clk 0:00:06.7]} 40. Re7
{[%clk 0:00:32.4]} 40... Rxg2+ {[%clk 0:00:05.5]} 41. Kh1 {[%clk 0:00:31.8]}
41... Rb2 {[%clk 0:00:02.4]} 42. Bd4 {[%clk 0:00:27.9]} 42... Rb1 {[%clk
0:00:01.7]} 43. Rxg7+ {[%clk 0:00:26.9]} 43... Kh8 {[%clk 0:00:02.6]} 44. Rg1+
{[%clk 0:00:24.5]} 44... Kh7 {[%clk 0:00:03.1]} 45. b7 {[%clk 0:00:22.9]} 45...
Rxb7 {[%clk 0:00:02.1]} 46. Rxf1 {[%clk 0:00:22.5]} 46... Kg6 {[%clk 0:00:03]}
47. Re1 {[%clk 0:00:20.6]} 47... Kh5 {[%clk 0:00:02.9]} 48. Kg2 {[%clk
0:00:18.4]} 48... Kxh4 {[%clk 0:00:01]} 49. Bf6+ {[%clk 0:00:16.4]} 1-0

[Event "*** SCC Grand Prix: Titled Tuesday Blitz"]
[Site "Chess.com"]
[Date "2020.09.29"]
[Round "10"]
[White "annacramling"]
[Black "norwaytoadog"]
[Result "0-1"]
[WhiteElo "2049"]
[BlackElo "2331"]
[TimeControl "180+1"]
[EndTime "11:56:21 PDT"]
[Termination "norwaytoadog won on time"]

1. d4 {[%clk 0:03:00.9]} 1... d5 {[%clk 0:02:59.5]} 2. c4 {[%clk 0:03:01.5]}
2... c6 {[%clk 0:02:59.8]} 3. Nf3 {[%clk 0:03:01.2]} 3... Nf6 {[%clk 0:03:00.1]}
4. Nc3 {[%clk 0:03:01]} 4... e6 {[%clk 0:03:00.3]} 5. Bg5 {[%clk 0:02:57.5]}
5... Nbd7 {[%clk 0:03:00.1]} 6. e3 {[%clk 0:02:55.9]} 6... Qa5 {[%clk
0:03:00.1]} 7. Nd2 {[%clk 0:02:53.7]} 7... dxc4 {[%clk 0:02:51.9]} 8. Bxf6
{[%clk 0:02:44]} 8... Nxf6 {[%clk 0:02:51.7]} 9. Nxc4 {[%clk 0:02:42.3]} 9...
Qc7 {[%clk 0:02:51.6]} 10. Bd3 {[%clk 0:02:41.7]} 10... Be7 {[%clk 0:02:51.4]}
11. O-O {[%clk 0:02:41.1]} 11... O-O {[%clk 0:02:51.4]} 12. Rc1 {[%clk
0:02:39.8]} 12... b6 {[%clk 0:02:42.8]} 13. Ne5 {[%clk 0:02:36.7]} 13... Bb7
{[%clk 0:02:29.3]} 14. Nb5 {[%clk 0:02:18.4]} 14... Qc8 {[%clk 0:02:11.7]} 15.
Qf3 {[%clk 0:01:40.7]} 15... cxb5 {[%clk 0:01:50.4]} 16. Rxc8 {[%clk 0:01:40.3]}
16... Bxf3 {[%clk 0:01:50.2]} 17. Rxf8+ {[%clk 0:01:40.4]} 17... Kxf8 {[%clk
0:01:48.7]} 18. Nxf3 {[%clk 0:01:39.2]} 18... a6 {[%clk 0:01:39.8]} 19. Rc1
{[%clk 0:01:37]} 19... Ke8 {[%clk 0:01:28.1]} 20. Ne5 {[%clk 0:01:36.7]} 20...
Nd5 {[%clk 0:01:04.4]} 21. g3 {[%clk 0:01:18.6]} 21... g6 {[%clk 0:00:58.6]} 22.
a3 {[%clk 0:00:55]} 22... f6 {[%clk 0:00:57.5]} 23. Nf3 {[%clk 0:00:45.8]} 23...
Kd7 {[%clk 0:00:52.4]} 24. e4 {[%clk 0:00:44.9]} 24... Nc7 {[%clk 0:00:51.7]}
25. d5 {[%clk 0:00:22.3]} 25... e5 {[%clk 0:00:41]} 26. Rc6 {[%clk 0:00:16.3]}
26... Rb8 {[%clk 0:00:41.3]} 27. Nd2 {[%clk 0:00:13.3]} 27... Bd6 {[%clk
0:00:34.9]} 28. Nf1 {[%clk 0:00:11.2]} 28... Ne8 {[%clk 0:00:30.6]} 29. Ne3
{[%clk 0:00:10.9]} 29... Ng7 {[%clk 0:00:29.7]} 30. Ng4 {[%clk 0:00:07.9]} 30...
Ne8 {[%clk 0:00:27.5]} 31. Nh6 {[%clk 0:00:06.3]} 31... Rb7 {[%clk 0:00:20.3]}
32. Nf7 {[%clk 0:00:06.1]} 32... Bc5 {[%clk 0:00:14.5]} 33. Kf1 {[%clk
0:00:05.7]} 33... Bd4 {[%clk 0:00:13.7]} 34. Nh6 {[%clk 0:00:05.1]} 34... Bxb2
{[%clk 0:00:12.2]} 35. Ng4 {[%clk 0:00:04.2]} 35... Bd4 {[%clk 0:00:07.9]} 36.
Nxf6+ {[%clk 0:00:04.1]} 36... Nxf6 {[%clk 0:00:08.2]} 37. Rxf6 {[%clk 0:00:05]}
37... Rc7 {[%clk 0:00:06.6]} 38. Rf7+ {[%clk 0:00:04.2]} 38... Kd6 {[%clk
0:00:06.8]} 39. Rxc7 {[%clk 0:00:04.2]} 39... Kxc7 {[%clk 0:00:07]} 40. f4
{[%clk 0:00:04.7]} 40... Kd6 {[%clk 0:00:06.7]} 41. Ke2 {[%clk 0:00:04.2]} 41...
Kc5 {[%clk 0:00:04.7]} 42. fxe5 {[%clk 0:00:02.1]} 42... Bxe5 {[%clk 0:00:04.6]}
43. Kd2 {[%clk 0:00:01.5]} 43... a5 {[%clk 0:00:04.8]} 44. Kc2 {[%clk
0:00:01.4]} 44... a4 {[%clk 0:00:04.7]} 0-1

[Event "*** SCC Grand Prix: Titled Tuesday Blitz"]
[Site "Chess.com"]
[Date "2020.09.29"]
[Round "10"]
[White "Zhigalko_Sergei"]
[Black "Gajuchess"]
[Result "1-0"]
[WhiteElo "2951"]
[BlackElo "2817"]
[TimeControl "180+1"]
[EndTime "11:56:24 PDT"]
[Termination "Zhigalko_Sergei won by resignation"]

1. e4 {[%clk 0:03:00.9]} 1... e5 {[%clk 0:03:00.1]} 2. Nf3 {[%clk 0:03:01.2]}
2... Nc6 {[%clk 0:03:00.8]} 3. Bb5 {[%clk 0:03:01.6]} 3... a6 {[%clk 0:03:00.4]}
4. Ba4 {[%clk 0:03:02.1]} 4... Nf6 {[%clk 0:03:00.3]} 5. O-O {[%clk 0:03:02.5]}
5... Nxe4 {[%clk 0:03:00.5]} 6. d4 {[%clk 0:03:02.5]} 6... Be7 {[%clk
0:02:59.7]} 7. Qe2 {[%clk 0:02:59.4]} 7... b5 {[%clk 0:02:56.2]} 8. d5 {[%clk
0:02:45.5]} 8... Nc5 {[%clk 0:02:48.2]} 9. Bb3 {[%clk 0:02:33.6]} 9... Na5
{[%clk 0:02:43.9]} 10. Nxe5 {[%clk 0:02:18]} 10... d6 {[%clk 0:02:43.2]} 11. Nc6
{[%clk 0:01:59.3]} 11... Nxc6 {[%clk 0:02:43.2]} 12. dxc6 {[%clk 0:02:00.2]}
12... Nxb3 {[%clk 0:02:37.7]} 13. axb3 {[%clk 0:02:00.2]} 13... O-O {[%clk
0:02:37.6]} 14. Nc3 {[%clk 0:01:59]} 14... Be6 {[%clk 0:02:37.6]} 15. Be3 {[%clk
0:01:54.3]} 15... b4 {[%clk 0:02:29.9]} 16. Ne4 {[%clk 0:01:28.8]} 16... Bd5
{[%clk 0:02:29.6]} 17. Ng3 {[%clk 0:01:29.1]} 17... Qc8 {[%clk 0:02:07.2]} 18.
Bd4 {[%clk 0:01:21.5]} 18... Re8 {[%clk 0:02:05.7]} 19. Qd2 {[%clk 0:01:14.8]}
19... Bxc6 {[%clk 0:02:01.5]} 20. Qxb4 {[%clk 0:01:14]} 20... Qb7 {[%clk
0:01:58.9]} 21. Qxb7 {[%clk 0:01:01.9]} 21... Bxb7 {[%clk 0:01:59.8]} 22. Rfe1
{[%clk 0:00:59.1]} 22... Bf8 {[%clk 0:01:56.9]} 23. f3 {[%clk 0:00:57.6]} 23...
f6 {[%clk 0:01:54.6]} 24. Nf5 {[%clk 0:00:55.6]} 24... g6 {[%clk 0:01:46.4]} 25.
Ne3 {[%clk 0:00:54.4]} 25... c5 {[%clk 0:01:46.5]} 26. Bxf6 {[%clk 0:00:53.2]}
26... d5 {[%clk 0:01:44.4]} 27. Bg5 {[%clk 0:00:43.4]} 27... Bg7 {[%clk
0:01:41.1]} 28. Rab1 {[%clk 0:00:37.2]} 28... Re6 {[%clk 0:01:31.9]} 29. Ng4
{[%clk 0:00:33.3]} 29... Rae8 {[%clk 0:01:32]} 30. Rxe6 {[%clk 0:00:28]} 30...
Rxe6 {[%clk 0:01:32.9]} 31. Kf1 {[%clk 0:00:25.1]} 31... a5 {[%clk 0:01:33.2]}
32. c3 {[%clk 0:00:14.9]} 32... Ba6+ {[%clk 0:01:33.1]} 33. Kg1 {[%clk
0:00:15.5]} 33... h6 {[%clk 0:01:14.8]} 34. Bxh6 {[%clk 0:00:14.9]} 34... Bh8
{[%clk 0:01:13.2]} 35. Ra1 {[%clk 0:00:13.7]} 35... d4 {[%clk 0:01:06.2]} 36.
Rxa5 {[%clk 0:00:11.4]} 36... Be2 {[%clk 0:01:06.1]} 37. Ra8+ {[%clk 0:00:09.9]}
37... Kh7 {[%clk 0:01:06.6]} 38. Ra7+ {[%clk 0:00:10]} 38... Kg8 {[%clk
0:01:06.5]} 39. Bg5 {[%clk 0:00:07.1]} 39... Bg7 {[%clk 0:01:04.6]} 40. Ra8+
{[%clk 0:00:06.9]} 40... Kh7 {[%clk 0:01:03.6]} 41. Ra7 {[%clk 0:00:07]} 41...
Kg8 {[%clk 0:01:04.1]} 42. Bh6 {[%clk 0:00:06.8]} 42... Bh8 {[%clk 0:01:04.3]}
43. Ra8+ {[%clk 0:00:07]} 43... Kh7 {[%clk 0:01:04.7]} 44. h3 {[%clk 0:00:06.3]}
44... dxc3 {[%clk 0:01:02.7]} 45. Ra7+ {[%clk 0:00:06.4]} 45... Kg8 {[%clk
0:01:03]} 46. Ra8+ {[%clk 0:00:06.2]} 46... Kh7 {[%clk 0:01:03.4]} 47. Ra7+
{[%clk 0:00:06.2]} 47... Kg8 {[%clk 0:01:03.9]} 48. bxc3 {[%clk 0:00:06.8]}
48... Bxc3 {[%clk 0:01:04.5]} 49. Be3 {[%clk 0:00:07.4]} 49... Rc6 {[%clk
0:00:58.5]} 50. Kf2 {[%clk 0:00:06]} 50... Bd1 {[%clk 0:00:58.8]} 51. Rb7 {[%clk
0:00:05.7]} 51... Bb4 {[%clk 0:00:58.8]} 52. Nh6+ {[%clk 0:00:04.3]} 52... Kf8
{[%clk 0:00:58.1]} 53. Ng4 {[%clk 0:00:04.7]} 53... Bxb3 {[%clk 0:00:56.7]} 54.
Ne5 {[%clk 0:00:05.3]} 54... Re6 {[%clk 0:00:49.1]} 55. Nd7+ {[%clk 0:00:05.7]}
55... Ke8 {[%clk 0:00:47.4]} 56. Nxc5 {[%clk 0:00:06.2]} 56... Bxc5 {[%clk
0:00:39.3]} 57. Rxb3 {[%clk 0:00:07.1]} 1-0